[Event "Late-Titled-Tuesday-Blitz-March-19-2024"]
[Site "Chess.com"]
[Date "2024.03.19"]
[Round "5"]
[White "RichardLeyvaP"]
[Black "Supelyel"]
[Result "1-0"]
[WhiteElo "2547"]
[BlackElo "2385"]
[TimeControl "180+1"]
[EndTime "14:56:35 PDT"]
[Termination "RichardLeyvaP won by resignation"]

1. e4 {[%clk 0:02:59.4]} 1... d6 {[%clk 0:02:58.8]} 2. d4 {[%clk 0:02:59]} 2...
Nf6 {[%clk 0:02:53.2]} 3. Nc3 {[%clk 0:02:59.2]} 3... e5 {[%clk 0:02:51.1]} 4.
Nf3 {[%clk 0:02:59.6]} 4... Nbd7 {[%clk 0:02:47.7]} 5. g4 {[%clk 0:02:59.7]}
5... Nxg4 {[%clk 0:02:46.9]} 6. Rg1 {[%clk 0:02:59.8]} 6... Ngf6 {[%clk
0:02:46.7]} 7. Bc4 {[%clk 0:03:00]} 7... h6 {[%clk 0:02:46.6]} 8. dxe5 {[%clk
0:02:59.6]} 8... dxe5 {[%clk 0:02:35.6]} 9. Qd3 {[%clk 0:02:58.5]} 9... c6
{[%clk 0:02:19.5]} 10. Be3 {[%clk 0:02:57.7]} 10... Qa5 {[%clk 0:02:17]} 11.
O-O-O {[%clk 0:02:57.2]} 11... b5 {[%clk 0:02:17]} 12. Bb3 {[%clk 0:02:56.6]}
12... Ba6 {[%clk 0:02:13.3]} 13. Nd2 {[%clk 0:02:56.2]} 13... Qc7 {[%clk
0:01:30.9]} 14. a4 {[%clk 0:02:51.7]} 14... Rb8 {[%clk 0:01:30.6]} 15. axb5
{[%clk 0:02:50.4]} 15... cxb5 {[%clk 0:01:30.8]} 16. Kb1 {[%clk 0:02:36.1]}
16... g5 {[%clk 0:01:02.8]} 17. h4 {[%clk 0:02:33.6]} 17... g4 {[%clk
0:00:55.4]} 18. f3 {[%clk 0:02:32]} 18... Rg8 {[%clk 0:00:51]} 19. fxg4 {[%clk
0:02:09.3]} 19... Rxg4 {[%clk 0:00:33.3]} 20. Rxg4 {[%clk 0:01:27.7]} 20... Nxg4
{[%clk 0:00:32.5]} 21. Nd5 {[%clk 0:01:28.6]} 21... Qc6 {[%clk 0:00:30.4]} 22.
Qe2 {[%clk 0:01:21.9]} 22... Ndf6 {[%clk 0:00:17.9]} 23. Bxa7 {[%clk 0:01:18.5]}
23... Ra8 {[%clk 0:00:16.2]} 24. Bb6 {[%clk 0:01:12.8]} 24... Bd6 {[%clk
0:00:14.9]} 25. Nxf6+ {[%clk 0:01:08.9]} 25... Nxf6 {[%clk 0:00:14.7]} 26. Be3
{[%clk 0:00:50.5]} 26... Bc8 {[%clk 0:00:12.9]} 27. Rf1 {[%clk 0:00:45.1]} 27...
Be7 {[%clk 0:00:13.1]} 28. Bxh6 {[%clk 0:00:38.5]} 28... Qa6 {[%clk 0:00:13.3]}
29. Kc1 {[%clk 0:00:38.7]} 29... Bg4 {[%clk 0:00:10.6]} 30. Bxf7+ {[%clk
0:00:32.1]} 30... Kxf7 {[%clk 0:00:10.7]} 31. Qxg4 {[%clk 0:00:31.9]} 31... Qa1+
{[%clk 0:00:09.9]} 32. Nb1 {[%clk 0:00:31.5]} 32... Rg8 {[%clk 0:00:10.4]} 33.
Qf5 {[%clk 0:00:26.6]} 33... Qa6 {[%clk 0:00:06.1]} 34. Qxe5 {[%clk 0:00:24.2]}
34... Rg6 {[%clk 0:00:05.6]} 35. Bg5 {[%clk 0:00:24]} 35... Qe6 {[%clk
0:00:06.3]} 36. Qxb5 {[%clk 0:00:12.3]} 36... Kg8 {[%clk 0:00:06.4]} 37. Re1
{[%clk 0:00:11.3]} 37... Ng4 {[%clk 0:00:04.3]} 38. Nc3 {[%clk 0:00:09.8]} 38...
Bxg5+ {[%clk 0:00:03.6]} 39. hxg5 {[%clk 0:00:09.5]} 39... Qe7 {[%clk
0:00:04.4]} 40. Qb8+ {[%clk 0:00:08.8]} 40... Kg7 {[%clk 0:00:04.8]} 41. Qf4
{[%clk 0:00:09]} 41... Qxg5 {[%clk 0:00:04.2]} 42. Qxg5 {[%clk 0:00:08.9]} 42...
Rxg5 {[%clk 0:00:05.1]} 43. b3 {[%clk 0:00:09.2]} 43... Kf6 {[%clk 0:00:05.6]}
44. Kb1 {[%clk 0:00:09.6]} 44... Ke5 {[%clk 0:00:05.9]} 45. Kb2 {[%clk 0:00:10]}
45... Nf6 {[%clk 0:00:06.5]} 46. Rd1 {[%clk 0:00:09.8]} 46... Rg2 {[%clk
0:00:07.1]} 47. Rd3 {[%clk 0:00:09.6]} 47... Rf2 {[%clk 0:00:07.2]} 48. Rd8
{[%clk 0:00:09]} 48... Ke6 {[%clk 0:00:07.3]} 49. Ra8 {[%clk 0:00:08.6]} 49...
Ke5 {[%clk 0:00:07.5]} 50. Ra5+ {[%clk 0:00:08.6]} 50... Ke6 {[%clk 0:00:08.2]}
51. Rc5 {[%clk 0:00:07.7]} 51... Nd7 {[%clk 0:00:08.2]} 52. Rc4 {[%clk
0:00:07.1]} 52... Ne5 {[%clk 0:00:08.6]} 53. Rd4 {[%clk 0:00:07.3]} 53... Nf3
{[%clk 0:00:08.8]} 54. Rd5 {[%clk 0:00:07.7]} 54... Ne5 {[%clk 0:00:08.7]} 55.
b4 {[%clk 0:00:08]} 55... Nf3 {[%clk 0:00:07.4]} 56. b5 {[%clk 0:00:07.8]} 56...
Ne1 {[%clk 0:00:08.2]} 57. Kb3 {[%clk 0:00:07.5]} 57... Nxc2 {[%clk 0:00:08.7]}
58. Rh5 {[%clk 0:00:06.3]} 58... Nd4+ {[%clk 0:00:08.8]} 59. Kc4 {[%clk
0:00:06.7]} 59... Nf3 {[%clk 0:00:09.3]} 60. Rh6+ {[%clk 0:00:06.7]} 60... Ke7
{[%clk 0:00:09.8]} 61. b6 {[%clk 0:00:06.7]} 61... Rf1 {[%clk 0:00:08.4]} 62.
Nd5+ {[%clk 0:00:06.7]} 62... Kd7 {[%clk 0:00:07.9]} 63. b7 {[%clk 0:00:05.7]}
63... Rb1 {[%clk 0:00:07.5]} 64. Nb4 {[%clk 0:00:04.9]} 64... Ne5+ {[%clk
0:00:07.5]} 65. Kc3 {[%clk 0:00:04.5]} 65... Rc1+ {[%clk 0:00:07]} 66. Kb2
{[%clk 0:00:04.1]} 66... Rc7 {[%clk 0:00:05.6]} 67. b8=Q {[%clk 0:00:03.8]}
67... Nc4+ {[%clk 0:00:06.5]} 68. Kb3 {[%clk 0:00:03.6]} 68... Nd6 {[%clk
0:00:07.1]} 69. Rxd6+ {[%clk 0:00:02.9]} 1-0

[Event "Late-Titled-Tuesday-Blitz-March-19-2024"]
[Site "Chess.com"]
[Date "2024.03.19"]
[Round "5"]
[White "mirochka"]
[Black "szachmistrz2500"]
[Result "1-0"]
[WhiteElo "2282"]
[BlackElo "2451"]
[TimeControl "180+1"]
[EndTime "14:56:35 PDT"]
[Termination "mirochka won on time"]

1. e4 {[%clk 0:03:00.9]} 1... c5 {[%clk 0:02:56.9]} 2. b4 {[%clk 0:02:59.9]}
2... b6 {[%clk 0:02:56]} 3. bxc5 {[%clk 0:02:59.1]} 3... bxc5 {[%clk 0:02:56.4]}
4. Nc3 {[%clk 0:02:59.7]} 4... d6 {[%clk 0:02:55.9]} 5. Rb1 {[%clk 0:02:57.8]}
5... Nd7 {[%clk 0:02:53.4]} 6. Nf3 {[%clk 0:02:48.9]} 6... Ngf6 {[%clk
0:02:53.2]} 7. d4 {[%clk 0:02:48.1]} 7... cxd4 {[%clk 0:02:43.8]} 8. Nxd4 {[%clk
0:02:47.6]} 8... e5 {[%clk 0:02:37.9]} 9. Nc6 {[%clk 0:02:22.4]} 9... Qc7 {[%clk
0:02:37.3]} 10. Bb5 {[%clk 0:02:22]} 10... Ba6 {[%clk 0:02:29.8]} 11. Nd5 {[%clk
0:02:13.8]} 11... Nxd5 {[%clk 0:02:21.9]} 12. exd5 {[%clk 0:02:14.7]} 12... Bxb5
{[%clk 0:02:16.1]} 13. Rxb5 {[%clk 0:02:15.6]} 13... Be7 {[%clk 0:02:08.2]} 14.
O-O {[%clk 0:02:10.7]} 14... Bf6 {[%clk 0:02:08.1]} 15. c4 {[%clk 0:01:38.2]}
15... O-O {[%clk 0:02:06.9]} 16. Ba3 {[%clk 0:01:25.8]} 16... Rfe8 {[%clk
0:01:46.3]} 17. Qb3 {[%clk 0:01:21.1]} 17... Nb6 {[%clk 0:01:43]} 18. Rb1 {[%clk
0:01:10.4]} 18... e4 {[%clk 0:01:42.1]} 19. Bb2 {[%clk 0:01:01.5]} 19... Bxb2
{[%clk 0:01:35.1]} 20. Rxb2 {[%clk 0:01:02.4]} 20... e3 {[%clk 0:01:27.8]} 21.
fxe3 {[%clk 0:00:59]} 21... Re4 {[%clk 0:01:28.4]} 22. Rc2 {[%clk 0:00:52.9]}
22... Rae8 {[%clk 0:01:24.8]} 23. Rc3 {[%clk 0:00:52.7]} 23... h5 {[%clk
0:01:18.9]} 24. a4 {[%clk 0:00:52.1]} 24... Nd7 {[%clk 0:00:59]} 25. Rb7 {[%clk
0:00:51.2]} 25... Qc8 {[%clk 0:00:59.5]} 26. Nxa7 {[%clk 0:00:41.6]} 26... Qd8
{[%clk 0:00:55.8]} 27. Nc6 {[%clk 0:00:41.5]} 27... Qc8 {[%clk 0:00:55.5]} 28.
a5 {[%clk 0:00:33.3]} 28... Nc5 {[%clk 0:00:55.2]} 29. Rb8 {[%clk 0:00:20.9]}
29... Nxb3 {[%clk 0:00:35.6]} 30. Rxc8 {[%clk 0:00:20.4]} 30... Rxc8 {[%clk
0:00:26.4]} 31. Rxb3 {[%clk 0:00:20.4]} 31... Kh7 {[%clk 0:00:16.2]} 32. a6
{[%clk 0:00:19.6]} 32... Rxc4 {[%clk 0:00:14.9]} 33. a7 {[%clk 0:00:19.4]} 33...
Ra4 {[%clk 0:00:12.5]} 34. Rb8 {[%clk 0:00:19.1]} 34... Rxc6 {[%clk 0:00:11]}
35. dxc6 {[%clk 0:00:17.2]} 35... Rxa7 {[%clk 0:00:10.9]} 36. Rd8 {[%clk
0:00:16.3]} 36... Ra2 {[%clk 0:00:07.6]} 37. Rxd6 {[%clk 0:00:15.1]} 37... Rc2
{[%clk 0:00:08.2]} 38. Rd7 {[%clk 0:00:14.5]} 38... Kg6 {[%clk 0:00:08.1]} 39.
c7 {[%clk 0:00:14.4]} 39... f6 {[%clk 0:00:08.2]} 40. Kf1 {[%clk 0:00:13.6]}
40... Kh6 {[%clk 0:00:08.3]} 41. Ke1 {[%clk 0:00:13.9]} 41... g6 {[%clk
0:00:08.7]} 42. Kd1 {[%clk 0:00:14.3]} 42... Rc6 {[%clk 0:00:08.3]} 43. Kd2
{[%clk 0:00:14.6]} 43... Kg5 {[%clk 0:00:08.8]} 44. Kd3 {[%clk 0:00:14.9]} 44...
Kf5 {[%clk 0:00:09.3]} 45. Kd4 {[%clk 0:00:11.8]} 45... Ke6 {[%clk 0:00:09.4]}
46. Rg7 {[%clk 0:00:11]} 46... g5 {[%clk 0:00:09.1]} 47. e4 {[%clk 0:00:10.5]}
47... Rc1 {[%clk 0:00:08.8]} 48. Rh7 {[%clk 0:00:08.4]} 48... h4 {[%clk
0:00:09.1]} 49. h3 {[%clk 0:00:08.4]} 49... Rc2 {[%clk 0:00:09.2]} 50. Rg7
{[%clk 0:00:08.3]} 50... Kd6 {[%clk 0:00:09.1]} 51. Rf7 {[%clk 0:00:07.4]} 51...
Ke6 {[%clk 0:00:09.2]} 52. Rh7 {[%clk 0:00:07.2]} 52... Kd6 {[%clk 0:00:09.1]}
53. Rh6 {[%clk 0:00:06.7]} 53... Ke6 {[%clk 0:00:08.4]} 54. e5 {[%clk
0:00:06.7]} 54... Rxc7 {[%clk 0:00:06.1]} 55. Rxf6+ {[%clk 0:00:06.9]} 55... Ke7
{[%clk 0:00:06.6]} 56. Rg6 {[%clk 0:00:07.4]} 56... Rc2 {[%clk 0:00:05.3]} 57.
Rxg5 {[%clk 0:00:07.4]} 57... Ke6 {[%clk 0:00:05.7]} 58. Rg4 {[%clk 0:00:07.8]}
58... Kf5 {[%clk 0:00:05.1]} 59. Kd3 {[%clk 0:00:06.8]} 59... Ra2 {[%clk
0:00:04.8]} 60. Ke3 {[%clk 0:00:07.2]} 60... Kxe5 {[%clk 0:00:04]} 61. Kf3
{[%clk 0:00:07.6]} 61... Ra3+ {[%clk 0:00:04.1]} 62. Kf2 {[%clk 0:00:08]} 62...
Ra2+ {[%clk 0:00:04.4]} 63. Kg1 {[%clk 0:00:08.4]} 63... Ra3 {[%clk 0:00:04.7]}
64. Kh2 {[%clk 0:00:08.3]} 64... Kf5 {[%clk 0:00:03.6]} 65. Rxh4 {[%clk
0:00:08.6]} 65... Kg5 {[%clk 0:00:02.5]} 66. Rb4 {[%clk 0:00:08.5]} 66... Rc3
{[%clk 0:00:02.6]} 67. Rb5+ {[%clk 0:00:08.9]} 67... Kh4 {[%clk 0:00:02]} 68.
g3+ {[%clk 0:00:07.7]} 1-0

[Event "Late-Titled-Tuesday-Blitz-March-19-2024"]
[Site "Chess.com"]
[Date "2024.03.19"]
[Round "5"]
[White "zverr1"]
[Black "Piriflillo"]
[Result "0-1"]
[WhiteElo "2533"]
[BlackElo "2373"]
[TimeControl "180+1"]
[EndTime "14:56:39 PDT"]
[Termination "Piriflillo won on time"]

1. e4 {[%clk 0:03:00.9]} 1... d5 {[%clk 0:03:00.6]} 2. exd5 {[%clk 0:03:00.8]}
2... Qxd5 {[%clk 0:03:01.5]} 3. Nc3 {[%clk 0:03:01.1]} 3... Qa5 {[%clk
0:03:02.2]} 4. d4 {[%clk 0:03:00]} 4... Nf6 {[%clk 0:03:02]} 5. Bc4 {[%clk
0:02:53.6]} 5... c6 {[%clk 0:03:02.1]} 6. Nf3 {[%clk 0:02:49.5]} 6... Bg4 {[%clk
0:03:02]} 7. h3 {[%clk 0:02:46.9]} 7... Qh5 {[%clk 0:03:02.6]} 8. Bf4 {[%clk
0:02:29.4]} 8... Bxf3 {[%clk 0:02:58.2]} 9. Qxf3 {[%clk 0:02:30.3]} 9... Qxf3
{[%clk 0:02:57.7]} 10. gxf3 {[%clk 0:02:31.2]} 10... e6 {[%clk 0:02:50.6]} 11.
O-O-O {[%clk 0:02:18.2]} 11... Nbd7 {[%clk 0:02:46.8]} 12. Rhe1 {[%clk
0:02:16.9]} 12... Nb6 {[%clk 0:02:41.8]} 13. Bb3 {[%clk 0:02:14.4]} 13... O-O-O
{[%clk 0:02:38.6]} 14. Ne4 {[%clk 0:02:05.7]} 14... Nfd5 {[%clk 0:02:30.7]} 15.
Bd2 {[%clk 0:02:00.3]} 15... Be7 {[%clk 0:02:19.7]} 16. Ba5 {[%clk 0:01:56.1]}
16... Bb4 {[%clk 0:02:14]} 17. Bxb4 {[%clk 0:01:53]} 17... Nxb4 {[%clk
0:02:13.9]} 18. Ng5 {[%clk 0:01:48.5]} 18... Rd7 {[%clk 0:02:04]} 19. Nxf7
{[%clk 0:01:40.1]} 19... Rxf7 {[%clk 0:02:01.8]} 20. Bxe6+ {[%clk 0:01:34]}
20... Rd7 {[%clk 0:02:01.6]} 21. a3 {[%clk 0:01:10.9]} 21... N4d5 {[%clk
0:02:01.2]} 22. Re4 {[%clk 0:01:05.3]} 22... Kc7 {[%clk 0:01:53]} 23. Bxd7
{[%clk 0:01:04.9]} 23... Kxd7 {[%clk 0:01:53.9]} 24. Rg1 {[%clk 0:01:00.8]}
24... g6 {[%clk 0:01:52.1]} 25. b3 {[%clk 0:00:59.5]} 25... Rf8 {[%clk 0:01:49]}
26. c4 {[%clk 0:00:59.9]} 26... Nc7 {[%clk 0:01:26.4]} 27. Rge1 {[%clk
0:00:46.5]} 27... Nc8 {[%clk 0:01:26]} 28. f4 {[%clk 0:00:45.7]} 28... Re8
{[%clk 0:01:19.1]} 29. f5 {[%clk 0:00:42.1]} 29... Rxe4 {[%clk 0:01:17.7]} 30.
Rxe4 {[%clk 0:00:43]} 30... gxf5 {[%clk 0:01:09.7]} 31. Rh4 {[%clk 0:00:43.3]}
31... Ne7 {[%clk 0:01:01.7]} 32. Rxh7 {[%clk 0:00:43.4]} 32... Ne6 {[%clk
0:01:02.2]} 33. Rh4 {[%clk 0:00:37.2]} 33... Ng6 {[%clk 0:00:56.6]} 34. Rh6
{[%clk 0:00:34.3]} 34... Ne7 {[%clk 0:00:52.2]} 35. d5 {[%clk 0:00:25.1]} 35...
cxd5 {[%clk 0:00:51.9]} 36. cxd5 {[%clk 0:00:26]} 36... Nxd5 {[%clk 0:00:52.4]}
37. Rh7+ {[%clk 0:00:20]} 37... Ne7 {[%clk 0:00:49.7]} 38. Kb2 {[%clk
0:00:19.5]} 38... Kd6 {[%clk 0:00:48.3]} 39. b4 {[%clk 0:00:18.6]} 39... Ng5
{[%clk 0:00:43.7]} 40. Rh6+ {[%clk 0:00:17.6]} 40... Ke5 {[%clk 0:00:43.3]} 41.
h4 {[%clk 0:00:17.7]} 41... Ne4 {[%clk 0:00:42.9]} 42. Rh7 {[%clk 0:00:17]}
42... Kf6 {[%clk 0:00:36.9]} 43. f3 {[%clk 0:00:16.2]} 43... Nd2 {[%clk
0:00:31.2]} 44. f4 {[%clk 0:00:15.6]} 44... Nc4+ {[%clk 0:00:31.6]} 45. Kb3
{[%clk 0:00:14.2]} 45... Ne3 {[%clk 0:00:26.5]} 46. h5 {[%clk 0:00:13.2]} 46...
N3d5 {[%clk 0:00:19.7]} 47. Rh8 {[%clk 0:00:11.3]} 47... Nxf4 {[%clk 0:00:19.4]}
48. h6 {[%clk 0:00:09.9]} 48... Nfg6 {[%clk 0:00:19.2]} 49. Ra8 {[%clk
0:00:09.7]} 49... a6 {[%clk 0:00:17.3]} 50. h7 {[%clk 0:00:10.1]} 50... Kg7
{[%clk 0:00:16.6]} 51. Ra7 {[%clk 0:00:08]} 51... Kxh7 {[%clk 0:00:16.2]} 52.
Rxb7 {[%clk 0:00:08.3]} 52... f4 {[%clk 0:00:16.3]} 53. Rd7 {[%clk 0:00:07.4]}
53... Kh6 {[%clk 0:00:14.5]} 54. Rd3 {[%clk 0:00:06.8]} 54... Kg5 {[%clk
0:00:14.6]} 55. a4 {[%clk 0:00:06]} 55... Ne5 {[%clk 0:00:11.4]} 56. Rd1 {[%clk
0:00:04.6]} 56... f3 {[%clk 0:00:10.4]} 57. Re1 {[%clk 0:00:04.2]} 57... Kf4
{[%clk 0:00:09.6]} 58. Rf1 {[%clk 0:00:04.8]} 58... Nf5 {[%clk 0:00:08.8]} 59.
b5 {[%clk 0:00:05.4]} 59... a5 {[%clk 0:00:09.2]} 60. b6 {[%clk 0:00:04.7]}
60... Nd6 {[%clk 0:00:09.5]} 61. Kc2 {[%clk 0:00:02.2]} 61... Ke3 {[%clk
0:00:09.3]} 62. Re1+ {[%clk 0:00:01.8]} 62... Kd4 {[%clk 0:00:08.6]} 63. Rf1
{[%clk 0:00:01.4]} 63... Kc5 {[%clk 0:00:06.6]} 64. Kd2 {[%clk 0:00:01.8]} 64...
Kxb6 {[%clk 0:00:07.1]} 65. Ke3 {[%clk 0:00:02.7]} 65... Ndc4+ {[%clk
0:00:06.9]} 66. Kd4 {[%clk 0:00:02.2]} 66... Kc6 {[%clk 0:00:05.9]} 0-1

[Event "Late-Titled-Tuesday-Blitz-March-19-2024"]
[Site "Chess.com"]
[Date "2024.03.19"]
[Round "5"]
[White "karinachess1"]
[Black "mind1mover"]
[Result "1/2-1/2"]
[WhiteElo "2642"]
[BlackElo "2812"]
[TimeControl "180+1"]
[EndTime "14:56:40 PDT"]
[Termination "Game drawn by repetition"]

1. d4 {[%clk 0:03:00.9]} 1... d5 {[%clk 0:03:00]} 2. c4 {[%clk 0:03:00.8]} 2...
dxc4 {[%clk 0:03:00.9]} 3. e3 {[%clk 0:02:59.9]} 3... Nf6 {[%clk 0:02:59.7]} 4.
Bxc4 {[%clk 0:02:59.9]} 4... e6 {[%clk 0:03:00.6]} 5. Nf3 {[%clk 0:02:59.9]}
5... c5 {[%clk 0:03:01.2]} 6. O-O {[%clk 0:03:00]} 6... Nc6 {[%clk 0:03:01.6]}
7. Qe2 {[%clk 0:02:59.9]} 7... a6 {[%clk 0:02:58.5]} 8. a3 {[%clk 0:02:58.3]}
8... b5 {[%clk 0:02:53.5]} 9. Ba2 {[%clk 0:02:58.2]} 9... Bb7 {[%clk 0:02:53.9]}
10. Rd1 {[%clk 0:02:57.8]} 10... Qc7 {[%clk 0:02:50.8]} 11. Nc3 {[%clk
0:02:57.8]} 11... Rd8 {[%clk 0:02:39.9]} 12. d5 {[%clk 0:02:44.6]} 12... exd5
{[%clk 0:02:39.5]} 13. Nxd5 {[%clk 0:02:44.5]} 13... Nxd5 {[%clk 0:02:39.9]} 14.
Bxd5 {[%clk 0:02:43.6]} 14... Be7 {[%clk 0:02:37.8]} 15. e4 {[%clk 0:02:41.2]}
15... O-O {[%clk 0:02:35.5]} 16. Be3 {[%clk 0:02:21.4]} 16... c4 {[%clk
0:02:27.8]} 17. Bg5 {[%clk 0:01:58.7]} 17... h6 {[%clk 0:02:03.6]} 18. Bxe7
{[%clk 0:01:48.5]} 18... Nxe7 {[%clk 0:02:02.3]} 19. Bxb7 {[%clk 0:01:39.8]}
19... Qxb7 {[%clk 0:02:03.2]} 20. Qe3 {[%clk 0:01:16.7]} 20... Nc6 {[%clk
0:01:24.2]} 21. Qc5 {[%clk 0:01:01.1]} 21... Na5 {[%clk 0:01:15]} 22. Rxd8
{[%clk 0:00:56.5]} 22... Rxd8 {[%clk 0:01:14.9]} 23. Re1 {[%clk 0:00:57.2]}
23... Nb3 {[%clk 0:01:12]} 24. Qe3 {[%clk 0:00:47.1]} 24... Qe7 {[%clk
0:00:52.8]} 25. h3 {[%clk 0:00:45.8]} 25... Nc5 {[%clk 0:00:42.6]} 26. Nd4
{[%clk 0:00:28.9]} 26... Nd3 {[%clk 0:00:40.2]} 27. Nc6 {[%clk 0:00:25.2]} 27...
Qd7 {[%clk 0:00:34.3]} 28. Nxd8 {[%clk 0:00:24.6]} 28... Nxe1 {[%clk 0:00:34]}
29. Qxe1 {[%clk 0:00:20.5]} 29... Qxd8 {[%clk 0:00:34.1]} 30. e5 {[%clk
0:00:16.3]} 30... Qd5 {[%clk 0:00:28.6]} 31. Qc3 {[%clk 0:00:12.9]} 31... Qd1+
{[%clk 0:00:23]} 32. Kh2 {[%clk 0:00:13]} 32... g5 {[%clk 0:00:23.7]} 33. Qe3
{[%clk 0:00:07]} 33... Qd3 {[%clk 0:00:23.6]} 34. Qc5 {[%clk 0:00:05.1]} 34...
Qe4 {[%clk 0:00:20.5]} 35. Qe7 {[%clk 0:00:04.2]} 35... Qf4+ {[%clk 0:00:20.4]}
36. Kg1 {[%clk 0:00:04.7]} 36... Qc1+ {[%clk 0:00:16]} 37. Kh2 {[%clk
0:00:04.6]} 37... Qxb2 {[%clk 0:00:15.3]} 38. Qd8+ {[%clk 0:00:04.3]} 38... Kh7
{[%clk 0:00:14.9]} 39. Qf6 {[%clk 0:00:04.5]} 39... Kg8 {[%clk 0:00:13.7]} 40.
Qd8+ {[%clk 0:00:04.8]} 40... Kg7 {[%clk 0:00:07.3]} 41. Qf6+ {[%clk 0:00:05.7]}
41... Kh7 {[%clk 0:00:05.8]} 42. Qxf7+ {[%clk 0:00:05.8]} 42... Kh8 {[%clk
0:00:06.6]} 43. Qf8+ {[%clk 0:00:05.3]} 43... Kh7 {[%clk 0:00:06.9]} 44. Qf7+
{[%clk 0:00:05.2]} 44... Kh8 {[%clk 0:00:03.3]} 45. e6 {[%clk 0:00:04.9]} 45...
Qe5+ {[%clk 0:00:03.1]} 46. g3 {[%clk 0:00:05.6]} 46... Qg7 {[%clk 0:00:02.2]}
47. Qe8+ {[%clk 0:00:03.7]} 47... Qg8 {[%clk 0:00:02.8]} 48. Qc6 {[%clk
0:00:02.9]} 48... Qf8 {[%clk 0:00:02.6]} 49. Qd7 {[%clk 0:00:02.6]} 49... Qxf2+
{[%clk 0:00:02.5]} 50. Kh1 {[%clk 0:00:03.2]} 50... Qf1+ {[%clk 0:00:03.4]} 51.
Kh2 {[%clk 0:00:03.7]} 51... Qf2+ {[%clk 0:00:04.3]} 52. Kh1 {[%clk 0:00:04.4]}
52... Qe1+ {[%clk 0:00:05]} 53. Kh2 {[%clk 0:00:04.6]} 53... Qe2+ {[%clk
0:00:05.7]} 54. Kh1 {[%clk 0:00:05]} 54... Qd3 {[%clk 0:00:03]} 55. Qe8+ {[%clk
0:00:04.3]} 55... Kg7 {[%clk 0:00:03.5]} 56. Qf7+ {[%clk 0:00:04.7]} 56... Kh8
{[%clk 0:00:04.1]} 57. e7 {[%clk 0:00:04.3]} 57... Qd1+ {[%clk 0:00:03.9]} 58.
Kh2 {[%clk 0:00:04.6]} 58... Qe2+ {[%clk 0:00:04]} 59. Kg1 {[%clk 0:00:04.4]}
59... Qe1+ {[%clk 0:00:04.2]} 60. Kg2 {[%clk 0:00:04.9]} 60... Qd2+ {[%clk
0:00:04.5]} 61. Kh1 {[%clk 0:00:04.7]} 61... Qc1+ {[%clk 0:00:03.2]} 62. Kh2
{[%clk 0:00:05.1]} 62... Qc2+ {[%clk 0:00:03.3]} 63. Kh1 {[%clk 0:00:05.5]}
63... Qb1+ {[%clk 0:00:03.6]} 64. Kh2 {[%clk 0:00:06]} 64... Qb2+ {[%clk
0:00:03.8]} 65. Kh1 {[%clk 0:00:06.6]} 65... Qa1+ {[%clk 0:00:03.7]} 66. Kh2
{[%clk 0:00:07]} 66... Qa2+ {[%clk 0:00:04.3]} 67. Kh1 {[%clk 0:00:07.6]} 67...
Qb1+ {[%clk 0:00:04]} 68. Kh2 {[%clk 0:00:08.2]} 68... Qc2+ {[%clk 0:00:03.8]}
69. Kh1 {[%clk 0:00:08.8]} 69... Qe4+ {[%clk 0:00:04.4]} 70. Kh2 {[%clk
0:00:09.1]} 70... Qe2+ {[%clk 0:00:04.6]} 71. Kh1 {[%clk 0:00:09.5]} 71... Qe1+
{[%clk 0:00:05.1]} 72. Kh2 {[%clk 0:00:09.9]} 72... Qd2+ {[%clk 0:00:05.4]} 73.
Kh1 {[%clk 0:00:10.4]} 73... Qd1+ {[%clk 0:00:06]} 74. Kh2 {[%clk 0:00:10.9]}
74... Qc2+ {[%clk 0:00:03.8]} 1/2-1/2